Workbook

Sheet ф.1.3 Предлож_ТСО
A3: Форма 1.3 - Предложения электросетевой организации по плановым значениям показателей надежности и качества услуг на каждый расчетный период регулирования в пределах долгосрочного периода регулирования *
A4: ООО "Павловоэнерго"
A5: (наименование территориальной сетевой организации)
A7: Наименование показателя | B7: Мероприятия, направленные на улучшение показателя** | C7: Описание (обоснование) | D7: Значение показателя на:
D8: 2015г | E8: 2016г | F8: 2017г | G8: 2018г | H8: 2019г
A9: Показатель средней продолжительности прекращений передачи электрической энергии (Пп) | D9: ='ПоказНадежн (Пп)'!D39 -> 0.01703655352
A10: Показатель уровня качества осуществляемого технологического присоединения (Птпр) *** | D10: ='ПоказТехприсоед (Птпр)'!C32 -> 1
A11: Показатель уровня качества обслуживания потребителей услуг территориальными сетевыми организациями (Птсо) *** | D11: ='ПоказКачества (Птсо)'!C4 -> 1.004444444
A13: * Плановые значения показателей надежности и качества на 2015 год заполняются на основании решения РСТ Нижегородской области
A14: ** Информация предоставляется справочно
A15: *** В редакции приказа Минэнерго России от 14.10.2013 № 718
A18: Генеральный директор | C18: Орлова Ю.Н | F18: __________________________
A19: (должность) | C19: (Ф.И.О.) | F19: (подпись)

Sheet ф.2.4 Предлож_ТСО (hidden)
A2: Форма 2.4 - Предложения территориальных сетевых организаций по плановым значениям параметров (критериев), характеризующих индикаторы качества обслуживания потребителей, на каждый расчетный период регулирования в пределах долгосрочного периода регулирования *
A4: _____________________________________________________________________________________
A5: (наименование территориальной сетевой организации)
E6: р= | F6: 0.015
A7: Наименование показателя | B7: Значение показателя на:
A8: Предлагаемые плановые значения параметров (критериев), характеризующих индикаторы качества ** | B8: 2012г | C8: 2013г | D8: 2014г | E8: 2015г | F8: 2016г
A9: Ин | B9: ='ф.2.1 ИндИнф (Ин)'!G62 -> 2.194444444
A10: 1.1. | B10: ='ф.2.1 ИндИнф (Ин)'!D36 -> 50 | C10: =B10*(1-$F$6) -> 49.25 | D10: =C10*(1-$F$6) -> 48.51125 | E10: --- | F10: ---
A11: 1.2. а) | B11: ='ф.2.1 ИндИнф (Ин)'!D39 -> 1 | C11: =B11*(1-$F$6) -> 0.985 | D11: =C11*(1-$F$6) -> 0.970225 | E11: --- | F11: ---
A12: 1.2. б) | B12: ='ф.2.1 ИндИнф (Ин)'!D40 -> 1 | C12: =B12 -> 1 | D12: =C12 -> 1 | E12: --- | F12: ---
A13: 1.2. в) | B13: ='ф.2.1 ИндИнф (Ин)'!D41 -> 9 | C13: =B13*(1-$F$6) -> 8.865 | D13: =C13*(1-$F$6) -> 8.732025 | E13: --- | F13: ---
A14: 1.2. г) | B14: ='ф.2.1 ИндИнф (Ин)'!D42 -> 6 | C14: =B14*(1-$F$6) -> 5.91 | D14: =C14*(1-$F$6) -> 5.82135 | E14: --- | F14: ---
A15: 2.1. | B15: ='ф.2.1 ИндИнф (Ин)'!D46 -> 1 | C15: =B15 -> 1 | D15: 1 | E15: --- | F15: ---
A16: 2.2. | B16: ='ф.2.1 ИндИнф (Ин)'!D47 -> 1 | C16: 1 | D16: 1 | E16: --- | F16: ---
A17: 2.3. | B17: ='ф.2.1 ИндИнф (Ин)'!D48 -> 1 | C17: 1 | D17: 1 | E17: --- | F17: ---
A18: 3. | B18: ='ф.2.1 ИндИнф (Ин)'!D50 -> 1 | C18: 1 | D18: 1 | E18: --- | F18: ---
A19: 4. | B19: ='ф.2.1 ИндИнф (Ин)'!D52 -> 1 | C19: 1 | D19: 1 | E19: --- | F19: ---
A20: 5.1. | B20: ='ф.2.1 ИндИнф (Ин)'!D55 -> 0 | C20: =B20*(1-$F$6) -> 0 | D20: 0 | E20: --- | F20: ---
A21: 6.1. | B21: ='ф.2.1 ИндИнф (Ин)'!D59 -> 8.333333333 | C21: 8.208333333 | D21: 8.085208333 | E21: --- | F21: ---
A22: 6.2. | B22: ='ф.2.1 ИндИнф (Ин)'!D60 -> 0 | C22: 0 | D22: 0 | E22: --- | F22: ---
A23: Ис | B23: ='ф.2.2 ИндИспол (Ис)'!G46 -> 0.55
A24: 1.1. | B24: ='ф.2.2 ИндИспол (Ис)'!D29 -> 12 | C24: =B24*(1-$F$6) -> 11.82 | D24: =C24*(1-$F$6) -> 11.6427 | E24: --- | F24: ---
A25: 1.2. а) | B25: ='ф.2.2 ИндИспол (Ис)'!D31 -> 0 | C25: =B25*(1-$F$6) -> 0 | D25: 0 | E25: --- | F25: ---
A26: 1.2. б) | B26: ='ф.2.2 ИндИспол (Ис)'!D32 -> 0 | C26: =B26*(1-$F$6) -> 0 | D26: 0 | E26: --- | F26: ---
A27: 1.3. | B27: ='ф.2.2 ИндИспол (Ис)'!D33 -> 0 | C27: =B27*(1-$F$6) -> 0 | D27: 0 | E27: --- | F27: ---
A28: 2.1. | B28: ='ф.2.2 ИндИспол (Ис)'!D36 -> 1.666666667 | C28: =B28*(1-$F$6) -> 1.641666667 | D28: 1.617041667 | E28: --- | F28: ---
A29: 3.1. | B29: ='ф.2.2 ИндИспол (Ис)'!D40 -> 1 | C29: =B29 -> 1 | D29: =C29 -> 1 | E29: --- | F29: ---
A30: 3.2. | B30: ='ф.2.2 ИндИспол (Ис)'!D41 -> 0 | C30: =B30*(1-$F$6) -> 0 | D30: 0 | E30: --- | F30: ---
A31: 4.1. | B31: ='ф.2.2 ИндИспол (Ис)'!D44 -> 0 | C31: =B31*(1-$F$6) -> 0 | D31: 0 | E31: --- | F31: ---
A32: Рс | B32: ='ф.2.3 ИндРезул. (Рс)'!G58 -> 2
A33: 1. | B33: ='ф.2.3 ИндРезул. (Рс)'!D31 -> 1 | C33: =B33 -> 1 | D33: =C33 -> 1 | E33: --- | F33: ---
A34: 1.1. | E34: --- | F34: ---
A35: 1.2. | E35: --- | F35: ---
A36: 2.1. | B36: ='ф.2.3 ИндРезул. (Рс)'!D35 -> 3.333333333 | C36: =B36*(1-$F$6) -> 3.283333333 | D36: 3.234083333 | E36: --- | F36: ---
A37: 2.2. | B37: ='ф.2.3 ИндРезул. (Рс)'!D36 -> 3.333333333 | C37: 3.283333333 | D37: 3.234083333 | E37: --- | F37: ---
A38: 2.3. | B38: ='ф.2.3 ИндРезул. (Рс)'!D37 -> 3.333333333 | C38: 3.283333333 | D38: 3.234083333 | E38: --- | F38: ---
A39: 2.4. | B39: ='ф.2.3 ИндРезул. (Рс)'!D38 -> 0 | C39: 0 | D39: 0 | E39: --- | F39: ---
A40: 2.5. | B40: ='ф.2.3 ИндРезул. (Рс)'!D39 -> 0 | C40: 0 | D40: 0 | E40: --- | F40: ---
A41: 2.6. | B41: ='ф.2.3 ИндРезул. (Рс)'!D40 -> 0 | C41: 0 | D41: 0 | E41: --- | F41: ---
A42: 3.1. | B42: ='ф.2.3 ИндРезул. (Рс)'!D44 -> 1 | C42: 0.985 | D42: 0.970225 | E42: --- | F42: ---
A43: 3.2. а) | B43: ='ф.2.3 ИндРезул. (Рс)'!D46 -> 0 | C43: 0 | D43: 0 | E43: --- | F43: ---
A44: 3.2. б) | B44: ='ф.2.3 ИндРезул. (Рс)'!D47 -> 0 | C44: 0 | D44: 0 | E44: --- | F44: ---
A45: 3.2. в) | B45: ='ф.2.3 ИндРезул. (Рс)'!D48 -> 0 | C45: 0 | D45: 0 | E45: --- | F45: ---
A46: 4.1. | B46: ='ф.2.3 ИндРезул. (Рс)'!D51 -> 0 | C46: 0 | D46: 0 | E46: --- | F46: ---
A47: 5.1. | B47: ='ф.2.3 ИндРезул. (Рс)'!D55 -> 1 | C47: 0.985 | D47: 0.970225 | E47: --- | F47: ---
A48: 5.2. | B48: ='ф.2.3 ИндРезул. (Рс)'!D56 -> 0 | C48: 0 | D48: 0 | E48: --- | F48: ---
A49: Предлагаемое плановое значение показателя уровня качества обслуживания потребителей услуг территориальной сетевой организацией | B49: 0.8975 | C49: 0.8975 | D49: 0.8975 | E49: --- | F49: ---
A50: * Количество заполняемых столбцов должно соответствовать количеству расчетных периодов регулирования в пределах одного долгосрочного периода регулирования с указанием года отчетного периода регулирования. ** Нумерация пунктов показателей параметров, характеризующих индикаторы качества, приведена в соответствии с формами 2.1 - 2.3 Приложения.
A53: _______________________________________ | B53: ________________________ | D53: ___________________________
A54: (должность) | B54: (Ф.И.О.) | D54: (подпись)

Sheet ПоказНадежн (Пп)
A3: Форма 1.1 - Журнал учета текущей информации о прекращении передачи электрической энергии для потребителей услуг электросетевой организации за 2015 год
A4: ООО "Павловоэнерго"
A5: (наименование терриоторальной сетевой организации)
A7: №** | B7: Обосновывающие данные для расчета * | C7: Продолжительность прекращения, час. | D7: Количество точек присоединения потребителей услуг к электрической сети электросетевой организации, шт.
A8: 1 | B8: 2 | C8: 3 | D8: 4
A9: 1 | B9: Журнал сводных данных об аварийных отключениях | C9: 0.5 | D9: 2298
A10: 2 | B10: Журнал сводных данных об аварийных отключениях | C10: 1.3 | D10: 2298
A11: 3 | B11: Журнал сводных данных об аварийных отключениях | C11: 14.11 | D11: 2298
A12: 4 | B12: Журнал сводных данных об аварийных отключениях | C12: 1.5 | D12: 2298
A13: 5 | B13: Журнал сводных данных об аварийных отключениях
A14: 6 | B14: Журнал сводных данных об аварийных отключениях | C14: 5.1 | D14: 2298
A15: 7 | B15: Журнал сводных данных об аварийных отключениях
A16: 8 | B16: Журнал сводных данных об аварийных отключениях | C16: 5.41 | D16: 2298
A17: 9 | B17: Журнал сводных данных об аварийных отключениях
A18: 10 | B18: Журнал сводных данных об аварийных отключениях
A19: 11 | B19: Журнал сводных данных об аварийных отключениях
A20: 12 | B20: Журнал сводных данных об аварийных отключениях | C20: 11.23 | D20: 2298
A24: ='ф.1.3 Предлож_ТСО'!A18:B18 -> Генеральный директор | C24: ='ф.1.3 Предлож_ТСО'!C18:E18 -> Орлова Ю.Н | D24: ________________________________
A25: (должность) | C25: (Ф.И.О.) | D25: (подпись)
A27: * В том числе на основе базы актов расследования технологических нарушений за соответствующий месяц;
A28: ** месяцы года
A32: Форма 1.2 - Расчет показателя средней продолжительности прекращения передачи электрической энергии
A33: =A4 -> ООО "Павловоэнерго"
A34: (наименование территориальной сетевой организации)
A37: Максимальное за расчетный период 2015г число точек присоединения (Nтп) | D37: =MAX(D9:D20) -> 2298
A38: Суммарная продолжительность прекращения передачи электрической энергии, час (Тпр) | D38: =SUM(C9:C20) -> 39.15
A39: Показатель средней продолжительности прекращения передачи электрической энергии (Пп) | D39: =IF(D37<=0,"Нет присоединений",D38/D37) -> 0.01703655352
A43: _________________________________ | C43: ____________________________ | D43: ________________________________
A44: (должность) | C44: (Ф.И.О.) | D44: (подпись)

Sheet ПоказТехприсоед (Птпр)
A2: Форма 3.1 - Отчетные данные для расчета значения показателя качества рассмотрения заявок на технологическое присоединение к сети, в период 2015г
A4: № п/п | B4: Наименование | C4: Значение, шт.
A5: 1 | B5: 2 | C5: 3
A6: 1 | B6: Число заявок на технологическое присоединение к сети, поданных в соответствии с требованиями нормативных правовых актов, по которым сетевой организацией в соответствующий расчетный период направлен проект договора об осуществлении технологического присоединения заявителей к сети, шт. (Nзаяв_тпр) | C6: 106
A7: 2 | B7: Число заявок на технологическое присоединение к сети, поданных в соответствии с требованиями нормативных правовых актов, по которым сетевой организацией в соответствующий расчетный период направлен проект договора об осуществлении технологического присоединения заявителей к сети с нарушением установленных сроков его направления, шт. (Nнсзаяв_тпр) | C7: 0
B8: max (1, Nзаяв_тпр - Nнсзаяв_тпр) | C8: =MAX(1,C6-C7) -> 106
B9: Пзаяв_тпр | C9: =IF(C6<0.999999999999999,1,C6/C8) -> 1
A12: Форма 3.2 - Отчетные данные для расчета значения показателя качества исполнения договоров об осуществлении технологического присоединения заявителей к сети, в период 2015г
A14: № п/п | B14: Наименование | C14: Значение, шт.
A15: 1 | B15: 2 | C15: 3
A16: 1 | B16: Число договоров об осуществлении технологического присоединения заявителей к сети, исполненных в соответствующем расчетном периоде, по которым имеется подписанный сторонами акт о технологическом присоединении, шт. (Nсд_тпр) | C16: 85
A17: 2 | B17: Число договоров об осуществлении технологического присоединения заявителей к сети, исполненных в соответствующем расчетном периоде, по которым имеется подписанный сторонами акт о технологическом присоединении, по которым произошло нарушение установленных сроков технологического присоединения, шт. (Nнссд_тпр) | C17: 0
B18: max (1, Nсд_тпр - Nнссд_тпр) | C18: =MAX(1,C16-C17) -> 85
B19: Пнс_тпр | C19: =IF(C16<0.99999999999999,1,C16/C18) -> 1
A22: Форма 3.3 - Отчетные данные для расчета значения показателя соблюдения антимонопольного законодательства при технологическом присоединении заявителей к электрическим сетям сетевой организации, в период 2015г
A24: № п/п | B24: Наименование | C24: Значение, шт.
A25: 1 | B25: 2 | C25: 3
A26: 1 | B26: Число вступивших в законную силу решений антимонопольного органа и (или) суда об установлении нарушений сетевой организацией требований антимонопольного законодательства Российской Федерации в части оказания услуг по технологическому присоединению в соответствующем расчетном периоде, шт. (Nн_тпр) | C26: 0
A27: 2 | B27: Общее число заявок на технологическое присоединение к сети, поданных заявителями в соответствующий расчетный период, в десятках шт. без округления (Nочз_тпр) | C27: 11
B28: max (1, Nочз_тпр - Nн_тпр) | C28: =MAX(1,C27-C26) -> 11
B29: Пнпа_тпр | C29: =IF(C27<0.0999999999999999,1,C27/C28) -> 1
C30: =0.4*C9+0.4*C19+0.2*C29 -> 1
B31: Показатель уровня качества осуществляемого технологического присоединения к сети, Птпр
B32: Птпр | C32: =IF(C30<1,1,0.4*C9+0.4*C19+0.2*C29) -> 1

Sheet ПоказКачества (Птсо)
B3: Показатель уровня качества обслуживания потребителей услуг (Птсо)
B4: Птсо | C4: =0.1*'ф.2.1 ИндИнф (Ин)'!G62+0.7*'ф.2.2 ИндИспол (Ис)'!G46+0.2*'ф.2.3 ИндРезул. (Рс)'!G58 -> 1.004444444

Sheet ф.2.1 ИндИнф (Ин)
B2: Расчет значения индикатора информативности (форма 2.1)
B3: Исходные данные для расчета: | F3: Факт | G3: План
A4: п.1.1 | B4: Количество структурных подразделений ТСО, осуществляющих взаимодействие с клиентами (потребителями услуг), шт. (для расчета п.1.1) | F4: 3 | G4: 3
B5: Общее количество структурных подразделений в ТСО, шт. (для расчета п. 1.1) | F5: 6 | G5: 6
A6: п.1.2 | B6: Количество утвержденных территориальной сетевой организацией в установленном порядке организационно-распорядительных документов по вопросам работы с заявителями и потребителями услуг - всего, шт., в том числе: | F6: --- | G6: ---
B7: а) количество регламентов оказания услуг и рассмотрения обращений заявителей и потребителей услуг, шт. (для расчета п. 1.2.а) | F7: 1 | G7: 1
B8: б) наличие положения о деятельности структурного подразделения по работе с заявителями и потребителями услуг (наличие - 1, отсутствие 0), шт. (для расчета п.1.2.б) | F8: 1 | G8: 1
B9: в) Количество должностных инструкций сотрудников, обслуживающих заявителей и потребителей услуг, шт. (для расчета п.1.2.в) | F9: 9 | G9: 9
B10: г) Количество утвержденных территориальной сетевой организацией в установленном порядке форм отчетности о работе с заявителями и потребителями услуг, шт. (для расчет п.1.2.г) | F10: 6 | G10: 6
A11: п.2 | B11: Наличие телефонной связи для обращений потребителей услуг к уполномоченным должностным лицам территориальной сетевой организации, в том числе по критериям: | F11: --- | G11: ---
B12: 2.1. Наличие единого телефонного номера для приема обращений потребителей услуг (наличие - 1, отсутствие - 0) (для расчета п.2.1) | F12: 1 | G12: 1
B13: 2.2. Наличие информационно-справочной системы для автоматизации обработки обращений потребителей услуг, поступивших по телефону (наличие - 1, отсутствие - 0) (для расчета п.2.2) | F13: 0 | G13: 1
B14: 2.3. Наличие системы автоинформирования потребителей услуг по телефону, предназначенной для доведения до них типовой информации (наличие - 1, отсутствие - 0) (для расчета п.2.3) | F14: 0 | G14: 1
A15: п.3 | B15: Наличие в сети Интернет сайта территориальной сетевой организации с возможностью обмена информацией с потребителями услуг посредством электронной почты (наличие - 1, отсутствие - 0) (для расчета п.3) | F15: 1 | G15: 1
A16: п.4 | B16: Проведение мероприятий по доведению до сведения потребителей услуг необходимой информации, в том числе путем ее размещения в сети Интернет, на бумажных носителях или иными доступными способами (проведение - 1, отсутствие - 0) (для расчета п.4) | F16: 1 | G16: 1
A17: п.5.1 | B17: Количество обращений в ТСО потребителей услуг о проведении консультаций по порядку обжалования действий (бездействия) ТСО в ходе исполнения своих функций, шт. (для расчета п.5.1) | F17: 0 | G17: 0
B18: Общее количество обращений в ТСО от потребителей услуг, шт. (для расчета п.5.1) | F18: 164 | G18: 120
A19: п.6 | B19: Степень полноты, актуальности и достоверности предоставляемой потребителям услуг информации о деятельности территориальной сетевой организации - всего, в том числе: | F19: --- | G19: ---
A20: п.6.1 | B20: Количество обращений потребителей услуг за консультациями в ТСО по вопросам деятельности ТСО, шт. (для расчета п.6.1) | F20: 120 | G20: 10
B21: Общее количество обращений потребителей услуг, поступивших в ТСО, шт. (для расчета п.6.1) | F21: =F18 -> 164 | G21: =G18 -> 120
A22: п.6.2 | B22: Количество жалоб потребителей услуг на отсутствие необходимой информации, которая должна быть раскрыта ТСО в соответствии с постановлением Правительства РФ от 21.01.2004 № 24, шт. (для расчета п. 6.2) | F22: 0 | G22: 0
B23: Общее количество обращений потребителей услуг в ТСО, шт. (для расчета п. 6.2) | F23: =F18 -> 164 | G23: =G18 -> 120
B26: Форма 2.1 - Расчет значения индикатора информативности
B28: ООО "Павловоэнерго"
B29: (наименование территориальной сетевой организации)
B31: Наименование параметра (критерия), характеризующего индикатор | C31: Значение | E31: Ф/П*100 % | F31: Зависимость | G31: Оценочный балл
C32: фактическое (Ф) | D32: плановое (П)
B33: 1 | C33: 2 | D33: 3 | E33: 4 | F33: 5 | G33: 6
B34: 1. Возможность личного приема заявителей и потребителей услуг уполномоченными должностными лицами территориальной сетевой организации - всего, | C34: --- | D34: --- | E34: --- | F34: --- | G34: =(G36+G37)/2 -> 2
B35: в том числе, по критериям:
B36: 1.1. Количество структурных подразделений по работе с заявителями и потребителями услуг в процентном отношении к общему количеству структурных подразделений, % | C36: =IF(F5=0,0,F4/F5*100) -> 50 | D36: =IF(G5=0,0,G4/G5*100) -> 50 | E36: =IF(D36>0,C36/D36*100,IF(C36=0,100,120)) -> 100 | F36: прямая | G36: =IF(E36<80,3,IF(E36>=80,IF(E36<=120,2,1))) -> 2
B37: 1.2. Количество утвержденных территориальной сетевой организацией в установленном порядке организационно-распорядительных документов по вопросам работы с заявителями и потребителями услуг - всего, шт. | C37: =C39+C40+C41+C42 -> 17 | D37: =D39+D40+D41+D42 -> 17 | E37: =IF(D37>0,C37/D37*100,IF(C37=0,100,120)) -> 100 | F37: прямая | G37: =IF(E37<80,3,IF(E37>=80,IF(E37<=120,2,1))) -> 2
B38: в том числе:
B39: а) регламенты оказания услуг и рассмотрения обращений заявителей и потребителей услуг, шт. | C39: =F7 -> 1 | D39: =G7 -> 1 | E39: =IF(D39>0,C39/D39*100,IF(C39=0,100,120)) -> 100 | F39: --- | G39: ---
B40: б) наличие положения о деятельности структурного подразделения по работе с заявителями и потребителями услуг (наличие - 1, отсутствие - 0) | C40: =IF(F8=0,0,1) -> 1 | D40: =IF(G8=0,0,1) -> 1 | E40: =IF(D40>0,C40/D40*100,IF(C40=0,100,120)) -> 100 | F40: --- | G40: ---
B41: в) должностные инструкции сотрудников, обслуживающих заявителей и потребителей услуг, шт. | C41: =F9 -> 9 | D41: =G9 -> 9 | E41: =IF(D41>0,C41/D41*100,IF(C41=0,100,120)) -> 100 | F41: --- | G41: ---
B42: г) утвержденные территориальной сетевой организацией в установленном порядке формы отчетности о работе с заявителями и потребителями услуг, шт. | C42: =F10 -> 6 | D42: =G10 -> 6 | E42: =IF(D42>0,C42/D42*100,IF(C42=0,100,120)) -> 100 | F42: --- | G42: ---
B44: 2. Наличие телефонной связи для обращений потребителей услуг к уполномоченным должностным лицам территориальной сетевой организации, | C44: --- | D44: --- | E44: --- | F44: --- | G44: =(G46+G47+G48)/3 -> 2.666666667
B45: в том числе по критериям:
B46: 2.1. Наличие единого телефонного номера для приема обращений потребителей услуг (наличие - 1, отсутствие - 0) | C46: =IF(F12=0,0,1) -> 1 | D46: 1 | E46: =IF(D46>0,C46/D46*100,IF(C46=0,100,120)) -> 100 | F46: прямая | G46: =IF(E46<80,3,IF(E46>=80,IF(E46<=120,2,1))) -> 2
B47: 2.2. Наличие информационно-справочной системы для автоматизации обработки обращений потребителей услуг, поступивших по телефону (наличие - 1, отсутствие - 0) | C47: 0 | D47: 1 | E47: 0 | F47: прямая | G47: 3
B48: 2.3. Наличие системы автоинформирования потребителей услуг по телефону, предназначенной для доведения до них типовой информации (наличие - 1, отсутствие - 0) | C48: 0 | D48: 1 | E48: 0 | F48: прямая | G48: 3
B50: 3. Наличие в сети Интернет сайта территориальной сетевой организации с возможностью обмена информацией с потребителями услуг посредством электронной почты (наличие - 1, отсутствие - 0) | C50: =IF(F15=0,0,1) -> 1 | D50: =IF(G15=0,0,1) -> 1 | E50: 100 | F50: прямая | G50: 2
B52: 4. Проведение мероприятий по доведению до сведения потребителей услуг необходимой информации, в том числе путем ее размещения в сети Интернет, на бумажных носителях или иными доступными способами (проведение - 1, отсутствие - 0) | C52: =IF(F16=0,0,1) -> 1 | D52: =IF(G16=0,0,1) -> 1 | E52: 100 | F52: прямая | G52: 2
B54: 5. Простота и доступность схемы обжалования потребителями услуг действий должностных лиц территориальной сетевой организации, по критерию | C54: =C55 -> 0 | D54: =D55 -> 0 | E54: =E55 -> 100 | F54: обратная | G54: =G55 -> 2
B55: 5.1. Общее количество обращений потребителей услуг о проведении консультаций по порядку обжалования действий (бездействия) территориальной сетевой организации в ходе исполнения своих функций в процентах от общего количества поступивших обращений, % | C55: =IF(F18=0,0,F17/F18*100) -> 0 | D55: =IF(G18=0,0,G17/G18*100) -> 0 | E55: =IF(D55>0,C55/D55*100,IF(C55=0,100,120)) -> 100 | F55: обратная | G55: =IF(E55<80,1,IF(E55>=80,IF(E55<=120,2,3))) -> 2
B57: 6. Степень полноты, актуальности и достоверности предоставляемой потребителям услуг информации о деятельности территориальной сетевой организации - всего, | C57: --- | D57: --- | E57: --- | F57: --- | G57: =(G59+G60)/2 -> 2.5
B58: в том числе по критериям:
B59: 6.1. Общее количество обращений потребителей услуг о проведении консультаций по вопросам деятельности территориальной сетевой организации в процентах от общего количества поступивших обращений, % | C59: =IF(F21=0,0,F20/F21*100) -> 73.17073171 | D59: =IF(G21=0,0,G20/G21*100) -> 8.333333333 | E59: =IF(D59>0,C59/D59*100,IF(C59=0,100,120)) -> 878.0487805 | F59: обратная | G59: =IF(E59<80,1,IF(E59>=80,IF(E59<=120,2,3))) -> 3
B60: 6.2. Количество обращений потребителей услуг с указанием на отсутствие необходимой информации, которая должна быть раскрыта территориальной сетевой организацией в соответствии с нормативными правовыми актами, в процентах от общего количества поступивших обращений, % | C60: =IF(F23=0,0,F22/F23*100) -> 0 | D60: =IF(G23=0,0,G22/G23*100) -> 0 | E60: =IF(D60>0,C60/D60*100,IF(C60=0,100,120)) -> 100 | F60: обратная | G60: =IF(E60<80,1,IF(E60>=80,IF(E60<=120,2,3))) -> 2
B62: 7. Итого по индикатору информативности (Ин) | C62: --- | D62: --- | E62: --- | F62: --- | G62: =(G34+G44+G50+G52+G54+G57)/6 -> 2.194444444
B65: Генеральный директор | C65: Орлова Ю.Н. | F65: _____________________
B66: (должность) | C66: (Ф.И.О.) | F66: (подпись)

Sheet ф.2.2 ИндИспол (Ис)
B2: Расчет значения индикатора исполнительности (форма 2.2)
B3: Исходные данные для расчета: | F3: Факт | G3: План
A4: п.1 | B4: Соблюдение сроков по процедурам взаимодействия с потребителями услуг (заявителями) - всего, в том числе: | F4: --- | G4: ---
A5: п.1.1 | B5: 1.1. Среднее время, затраченное территориальной сетевой организацией на направление проекта договора оказания услуг по передаче электрической энергии потребителю услуг (заявителю), дней (для расчета п.1.1) | F5: 15 | G5: 12
A6: п.1.2 | B6: 1.2. Среднее время, необходимое для оборудования точки поставки приборами учета с момента подачи заявления потребителем услуг, в том числе: (для расчета п.1.2) | F6: --- | G6: ---
B7: а) для физических лиц, включая индивидуальных предпринимателей, и юридических лиц - субъектов малого и среднего предпринимательства, дней (для расчета п.1.2.а)
B8: б) для остальных потребителей услуг, дней (для расчета п.1.2.б)
A9: п.1.3 | B9: Количество случаев отказа от заключения и случаев расторжения потребителем услуг договоров оказания услуг по передаче электрической энергии, шт. (для расчета п.1.3) | F9: 0 | G9: 0
B10: Общее количество заключенных ТСО договоров с потребителями услуг (заявителями), кроме физических лиц, шт. (для расчета п.1.3) | F10: 1 | G10: 1
A11: п.2.1 | B11: Количество обращений в ТСО потребителей услуг с указанием на ненадлежащее качество электрической энергии, поступающей из сети ТСО, шт. (для расчета п.2.1) | F11: 4 | G11: 2
B12: Общее количество поступивших в ТСО обращений потребителей услуг, шт. (для расчета п.2.1) | F12: ='ф.2.1 ИндИнф (Ин)'!F23 -> 164 | G12: ='ф.2.1 ИндИнф (Ин)'!G23 -> 120
A13: п.3.1 | B13: Наличие (отсутствие) установленной процедуры согласования с потребителями услуг графиков вывода электросетевого оборудования в ремонт и (или) из эксплуатации (наличие - 1, отсутствие - 0) (для расчета п.3.1) | F13: 0 | G13: 1
A14: п.3.2 | B14: Количество обращений потребителей услуг с указанием на несогласие введения предлагаемых ТСО графиков вывода электросетевого оборудования в ремонт и (или) из эксплуатации, шт. (для расчета п.3.2) | F14: 0 | G14: 0
B15: Общее количество поступивших обращений в ТСО потребителей услуг, кроме физических лиц, шт. (для расчета п.3.2) | F15: 0 | G15: 0
A16: п.4.1 | B16: Количество обращений в ТСО потребителей услуг (заявителей) с указанием на неправомерность использования персональных данных потребителей услуг (заявителей),шт. (для расчета п.4.1) | F16: 0 | G16: 0
B17: Общее количество поступивших обращений в ТСО потребителей услуг, шт. (для расчета п.4.1) | F17: ='ф.2.1 ИндИнф (Ин)'!F23 -> 164 | G17: ='ф.2.1 ИндИнф (Ин)'!G23 -> 120
B19: Форма 2.2 - Расчет значения индикатора исполнительности
B21: ='ф.2.1 ИндИнф (Ин)'!B28:G28 -> ООО "Павловоэнерго"
B22: (наименование территориальной сетевой организации)
B24: Наименование параметра (критерия), характеризующего индикатор | C24: Значение | E24: Ф/П*100 % | F24: Зависимость | G24: Оценочный балл
C25: фактическое (Ф) | D25: плановое (П)
B26: 1 | C26: 2 | D26: 3 | E26: 4 | F26: 5 | G26: 6
B27: 1. Соблюдение сроков по процедурам взаимодействия с потребителями услуг (заявителями) - всего, | C27: --- | D27: --- | E27: --- | F27: --- | G27: =(G29+G33)/2 -> 0.625
B28: в том числе по критериям:
B29: 1.1. Среднее время, затраченное территориальной сетевой организацией на направление проекта договора оказания услуг по передаче электрической энергии потребителю услуг (заявителю), дней | C29: =F5 -> 15 | D29: =G5 -> 12 | E29: =IF(D29>0,C29/D29*100,IF(C29=0,100,120)) -> 125 | F29: обратная | G29: =IF(E29<80,0.25,IF(E29>=80,IF(E29<=120,0.5,0.75))) -> 0.75
B30: 1.2. Среднее время, необходимое для оборудования точки поставки приборами учета с момента подачи заявления потребителем услуг: | C30: --- | D30: --- | F30: обратная
B31: а) для физических лиц, включая индивидуальных предпринимателей, и юридических лиц - субъектов малого и среднего предпринимательства, дней | C31: =F7 -> 0 | D31: =G7 -> 0 | E31: =IF(D31>0,C31/D31*100,IF(C31=0,100,120)) -> 100 | F31: --- | G31: ---
B32: б) для остальных потребителей услуг, дней | C32: =F8 -> 0 | D32: =G8 -> 0 | E32: =IF(D32>0,C32/D32*100,IF(C32=0,100,120)) -> 100 | F32: --- | G32: ---
B33: 1.3. Количество случаев отказа от заключения и случаев расторжения потребителем услуг договоров оказания услуг по передаче электрической энергии в процентах от общего количества заключенных территориальной сетевой организацией договоров с потребителями услуг (заявителями), кроме физических лиц, % | C33: =IF(F10=0,0,F9/F10*100) -> 0 | D33: =IF(G10=0,0,G9/G10*100) -> 0 | E33: =IF(D33>0,C33/D33*100,IF(C33=0,100,120)) -> 100 | F33: обратная | G33: =IF(E33<80,0.25,IF(E33>=80,IF(E33<=120,0.5,0.75))) -> 0.5
B35: 2. Соблюдение требований нормативных правовых актов Российской Федерации по поддержанию качества электрической энергии, по критерию | C35: =C36 -> 2.43902439 | D35: =D36 -> 1.666666667 | E35: =E36 -> 146.3414634 | G35: =G36 -> 0.75
B36: 2.1. Количество обращений потребителей услуг с указанием на ненадлежащее качество электрической энергии, в процентах от общего количества поступивших обращений, % | C36: =IF(F12=0,0,F11/F12*100) -> 2.43902439 | D36: =IF(G12=0,0,G11/G12*100) -> 1.666666667 | E36: =IF(D36>0,C36/D36*100,IF(C36=0,100,120)) -> 146.3414634 | F36: обратная | G36: =IF(E36<80,0.25,IF(E36>=80,IF(E36<=120,0.5,0.75))) -> 0.75
B38: 3. Наличие взаимодействия с потребителями услуг при выводе оборудования в ремонт и (или) из эксплуатации | C38: --- | D38: --- | E38: --- | F38: --- | G38: =(G40+G41)/2 -> 0.625
B39: в том числе по критериям:
B40: 3.1. Наличие (отсутствие) установленной процедуры согласования с потребителями услуг графиков вывода электросетевого оборудования в ремонт и (или) из эксплуатации (наличие - 1, отсутствие - 0) | C40: =IF(F13=0,0,1) -> 0 | D40: =IF(G13=0,0,1) -> 1 | E40: =IF(D40>0,C40/D40*100,IF(C40=0,100,120)) -> 0 | F40: прямая | G40: =IF(E40<80,0.75,IF(E40>=80,IF(E40<=120,0.5,0.25))) -> 0.75
B41: 3.2. Количество обращений потребителей услуг с указанием на несогласие введения предлагаемых территориальной сетевой организацией графиков вывода электросетевого оборудования в ремонт и (или) из эксплуатации, в процентах от общего количества поступивших обращений, кроме физических лиц, % | C41: =IF(F15=0,0,F14/F15*100) -> 0 | D41: =IF(G15=0,0,G14/G15*100) -> 0 | E41: =IF(D41>0,C41/D41*100,IF(C41=0,100,120)) -> 100 | F41: обратная | G41: =IF(E41<80,0.25,IF(E41>=80,IF(E41<=120,0.5,0.75))) -> 0.5
B43: 4. Соблюдение требований нормативных правовых актов по защите персональных данных потребителей услуг (заявителей), по критерию | C43: =C44 -> 0 | D43: =D44 -> 0 | E43: =E44 -> 100 | F43: обратная | G43: =G44 -> 0.2
B44: 4.1. Количество обращений потребителей услуг (заявителей) с указанием на неправомерность использования персональных данных потребителей услуг (заявителей), в процентах от общего количества поступивших обращений, % | C44: =IF(F17=0,0,F16/F17*100) -> 0 | D44: =IF(G17=0,0,G16/G17*100) -> 0 | E44: =IF(D44>0,C44/D44*100,IF(C44=0,100,120)) -> 100 | F44: обратная | G44: =IF(E44<80,0.1,IF(E44>=80,IF(E44<=120,0.2,0.3))) -> 0.2
B46: 5. Итого по индикатору исполнительности (Ис) | C46: --- | D46: --- | E46: --- | F46: --- | G46: =(G27+G35+G38+G43)/4 -> 0.55
B49: ='ф.2.1 ИндИнф (Ин)'!B65 -> Генеральный директор | C49: ='ф.2.1 ИндИнф (Ин)'!C65:E65 -> Орлова Ю.Н. | F49: ______________________
B50: (должность) | C50: (Ф.И.О.) | F50: (подпись)

Sheet ф.2.3 ИндРезул. (Рс)
B2: Расчет значения индикатора результативности обратной связи (форма 2.3)
B3: Исходные данные для расчета: | F3: Факт | G3: План
A4: п.1 | B4: Наличие структурного подразделения территориальной сетевой организации по рассмотрению, обработке и принятию мер по обращениям потребителей услуг (наличие - 1, отсутствие - 0) (для расчета п.1) | F4: 1 | G4: 1
A5: п.2.1 | B5: Количество обращений (жалоб) в ТСО потребителей услуг с указанием на ненадлежащее качество услуг по передаче электрической энергии и обслуживание, шт. (для расчета п.2.1) | F5: 4 | G5: 4
B6: Общее количество обращений потребителей услуг, поступивших в ТСО, шт. | F6: ='ф.2.1 ИндИнф (Ин)'!F23 -> 164 | G6: ='ф.2.1 ИндИнф (Ин)'!G23 -> 120
A7: п.2.2 | B7: Количество принятых мер по результатам рассмотрения обращений потребителей услуг с указанием на ненадлежащее качество услуг по передаче электрической энергии и обслуживание, шт. (для расчета п.2.2) | F7: 4 | G7: 4
A8: п.2.3 | B8: Количество обращений, связанных с неудовлетворенностью принятыми мерами, указанными в п.2.2 настоящей формы, поступивших от потребителей услуг в течение 30 рабочих дней после завершения мероприятий, указанных в п.2.2 настоящей формы, шт. (для расчета п.2.3) | F8: 4 | G8: 4
A9: п.2.4 | B9: Количество обращений потребителей услуг с указанием на ненадлежащее качество услуг ТСО, поступивших в соответствующий контролирующий орган исполнительной власти, шт. (для расчета п.2.4) | F9: 0 | G9: 0
A10: п.2.5 | B10: Количество отзывов и предложений по вопросам деятельности ТСО, поступивших через обратную связь, шт. (для расчета п.2.5) | F10: 0 | G10: 0
A11: п.2.6 | B11: Количество реализованных изменений в деятельности организации, направленных на повышение качества обслуживания потребителей услуг, шт. (для расчета п.2.6) | F11: 0 | G11: 0
A12: п.3.1 | B12: Средняя продолжительность времени принятия мер по результатам обращения потребителя услуг, дней (для расчета п.3.1) | F12: 1 | G12: 1
A13: п.3.2 | B13: Взаимодействие территориальной сетевой организации с потребителями услуг с целью получения информации о качестве обслуживания, реализованное посредством, в том числе: | F13: --- | G13: ---
B14: 3.2.а Письменных опросов, шт. на 1000 потребителей услуг (для расчета п.3.2.а) | F14: 0 | G14: 0
B15: 3.2.б Электронной связи через сеть Интернет, шт. на 1000 потребителей услуг (для расчета п.3.2.б) | F15: 0 | G15: 0
B16: 3.2.в* Системы автоинформирования, шт. на 1000 потребителей услуг (для расчета п.3.2.в) | F16: 0 | G16: 0
A17: п.4.1 | B17: Количество обращений потребителей услуг льготных категорий с указанием на неудовлетворенность качества их обслуживания, шт. на 1000 потребителей услуг (для расчета п.4.1) | F17: 0 | G17: 0
A19: п.5.1 | B19: Средняя продолжительность времени на принятие территориальной сетевой организацией мер по возмещению потребителю услуг убытков, месяцев (для расчета п.5.1) | F19: 1 | G19: 1
A20: п.5.2 | B20: Доля потребителей услуг, получивших возмещение убытков, возникших в результате неисполнения (ненадлежащего исполнения) ТСО своих обязательств, шт. (для расчета п.5.2) | F20: 0 | G20: 0
B21: Общее количество потребителей, в пользу которых были вынесены судебные решения о возмещении убытков или возмещение убытков было произведено во внесудебном порядке, шт. (для расчета п.5.2) | F21: 0 | G21: 0
B23: Форма 2.3 - Расчет значения индикатора результативности обратной связи
B25: ='ф.2.2 ИндИспол (Ис)'!B21:G21 -> ООО "Павловоэнерго"
B26: (наименование территориальной сетевой организации)
B28: Наименование параметра (критерия), характеризующего индикатор | C28: Значение | E28: Ф/П*100 % | F28: Зависимость | G28: Оценочный балл
C29: фактическое (Ф) | D29: плановое (П)
B30: 1 | C30: 2 | D30: 3 | E30: 4 | F30: 5 | G30: 6
B31: 1. Наличие структурного подразделения территориальной сетевой организации по рассмотрению, обработке и принятию мер по обращениям потребителей услуг (наличие - 1, отсутствие - 0) | C31: =IF(F4=0,0,1) -> 1 | D31: =IF(G4=0,0,1) -> 1 | E31: =IF(D31>0,C31/D31*100,IF(C31=0,100,120)) -> 100 | F31: прямая | G31: =IF(E31<80,3,IF(E31>=80,IF(E31<=120,2,1))) -> 2
B33: 2. Степень удовлетворения обращений потребителей услуг | C33: --- | D33: --- | E33: --- | F33: --- | G33: =(G35+G36+G38+G39+G40)/5 -> 2
B34: в том числе по критериям:
B35: 2.1. Общее количество обращений потребителей услуг с указанием на ненадлежащее качество услуг по передаче электрической энергии и обслуживание, в процентах от общего количества поступивших обращений, % | C35: =IF(F6=0,0,F5/F6*100) -> 2.43902439 | D35: =IF(G6=0,0,G5/G6*100) -> 3.333333333 | E35: =IF(D35>0,C35/D35*100,IF(C35=0,100,120)) -> 73.17073171 | F35: обратная | G35: =IF(E35<80,1,IF(E35>=80,IF(E35<=120,2,3))) -> 1
B36: 2.2. Количество принятых мер по результатам рассмотрения обращений потребителей услуг с указанием на ненадлежащее качество услуг по передаче электрической энергии и обслуживание, в процентах от общего количества поступивших обращений, % | C36: =IF(F6=0,0,F7/F6*100) -> 2.43902439 | D36: =IF(G6=0,0,G7/G6*100) -> 3.333333333 | E36: 73.17073171 | F36: прямая | G36: =IF(E36<80,3,IF(E36>=80,IF(E36<=120,2,1))) -> 3
B37: 2.3. Количество обращений, связанных с неудовлетворенностью принятыми мерами, указанными в п. 2.2 настоящей формы, поступивших от потребителей услуг в течение 30 рабочих дней после завершения мероприятий, указанных в п. 2.2 настоящей формы, в процентах от общего количества поступивших обращений, % | C37: =IF(F6=0,0,F8/F6*100) -> 2.43902439 | D37: =IF(G6=0,0,G8/G6*100) -> 3.333333333 | E37: 73.17073171 | F37: обратная | G37: ---
B38: 2.4. Количество обращений потребителей услуг с указанием на ненадлежащее качество услуг, оказываемых территориальной сетевой организацией, поступивших в соответствующий контролирующий орган исполнительной власти, в процентах от общего количества поступивших обращений, % | C38: =IF(F6=0,0,F9/F6*100) -> 0 | D38: =IF(G6=0,0,G9/G6*100) -> 0 | E38: 100 | F38: обратная | G38: =IF(E38<80,1,IF(E38>=80,IF(E38<=120,2,3))) -> 2
B39: 2.5. Количество отзывов и предложений по вопросам деятельности территориальной сетевой организации, поступивших через обратную связь, в процентах от общего количества поступивших обращений, % | C39: =IF(F6=0,0,F10/F6*100) -> 0 | D39: =IF(G6=0,0,G10/G6*100) -> 0 | E39: 100 | F39: прямая | G39: =IF(E39<80,3,IF(E39>=80,IF(E39<=120,2,1))) -> 2
B40: 2.6. Количество реализованных изменений в деятельности организации, направленных на повышение качества обслуживания потребителей услуг, шт. | C40: =F11 -> 0 | D40: =G11 -> 0 | E40: 100 | F40: прямая | G40: =IF(E40<80,3,IF(E40>=80,IF(E40<=120,2,1))) -> 2
B42: 3. Оперативность реагирования на обращения потребителей услуг - всего, | C42: --- | D42: --- | E42: --- | F42: --- | G42: =G44 -> 2
B43: в том числе по критериям:
B44: 3.1. Средняя продолжительность времени принятия мер по результатам обращения потребителя услуг, дней | C44: =F12 -> 1 | D44: =G12 -> 1 | E44: =IF(D44>0,C44/D44*100,IF(C44=0,100,120)) -> 100 | F44: обратная | G44: =IF(E44<80,1,IF(E44>=80,IF(E44<=120,2,3))) -> 2
B45: 3.2. Взаимодействие территориальной сетевой организации с потребителями услуг с целью получения информации о качестве обслуживания, реализованное посредством: | C45: --- | D45: --- | F45: прямая
B46: а) письменных опросов, шт. на 1000 потребителей услуг | C46: =F14 -> 0 | D46: 0 | E46: =IF(D46>0,C46/D46*100,IF(C46=0,100,120)) -> 100 | F46: --- | G46: ---
B47: б) электронной связи через сеть Интернет, шт. на 1000 потребителей услуг | C47: 0 | D47: 0 | E47: =IF(D47>0,C47/D47*100,IF(C47=0,100,120)) -> 100 | F47: --- | G47: ---
B48: в)* системы автоинформирования, шт. на 1000 потребителей услуг | C48: 0 | D48: 0 | E48: =IF(D48>0,C48/D48*100,IF(C48=0,100,120)) -> 100 | F48: --- | G48: ---
B50: 4. Индивидуальность подхода к потребителям услуг льготных категорий, по критерию | C50: =C51 -> 0 | D50: =D51 -> 0 | E50: =E51 -> 100 | F50: обратная | G50: =G51 -> 2
B51: 4.1. Количество обращений потребителей услуг льготных категорий с указанием на неудовлетворительность качества их обслуживания, шт. на 1000 потребителей услуг | C51: =F17 -> 0 | D51: =G17 -> 0 | E51: =IF(D51>0,C51/D51*100,IF(C51=0,100,120)) -> 100 | F51: обратная | G51: =IF(E51<80,1,IF(E51>=80,IF(E51<=120,2,3))) -> 2
B53: 5. Оперативность возмещения убытков потребителям услуг при несоблюдении территориальной сетевой организацией обязательств, предусмотренных нормативными правовыми актами и договорами | C53: --- | D53: --- | E53: --- | F53: --- | G53: =(G55+G56)/2 -> 2
B54: в том числе по критериям:
B55: 5.1. Средняя продолжительность времени на принятие территориальной сетевой организацией мер по возмещению потребителю услуг убытков, месяцев | C55: =F19 -> 1 | D55: =G19 -> 1 | E55: =IF(D55>0,C55/D55*100,IF(C55=0,100,120)) -> 100 | F55: обратная | G55: =IF(E55<80,1,IF(E55>=80,IF(E55<=120,2,3))) -> 2
B56: 5.2. Доля потребителей услуг, получивших возмещение убытков, возникших в результате неисполнения (ненадлежащего исполнения) территориальной сетевой организацией своих обязательств, от числа потребителей, в пользу которых было вынесено судебное решение, или возмещение было произведено во внесудебном порядке, % | C56: =IF(F21=0,0,F20/F21*100) -> 0 | D56: =IF(G21=0,0,G20/G21*100) -> 0 | E56: =IF(D56>0,C56/D56*100,IF(C56=0,100,120)) -> 100 | F56: прямая | G56: =IF(E56<80,3,IF(E56>=80,IF(E56<=120,2,1))) -> 2
B58: 6. Итого по индикатору результативности обратной связи (Рс) | C58: --- | D58: --- | E58: --- | F58: --- | G58: =(G31+G33+G42+G50+G53)/5 -> 2
B60: ='ф.2.2 ИндИспол (Ис)'!B49 -> Генеральный директор | C60: ='ф.2.2 ИндИспол (Ис)'!C49:E49 -> Орлова Ю.Н. | F60: ______________________
B61: (должность) | C61: (Ф.И.О.) | F61: (подпись)
B64: * Расчет производится при наличии в территориальной сетевой организации Системы автоинформирования (голосовая, СМС и другим способом).

Sheet ф.4.1
A2: Форма 4.1 - Показатели уровня надежности и качества оказываемых услуг электросетевыми организациями
A3: К = | B3: =0.35-0.35*0.01 -> 0.3465
A4: № | B4: Наименование показателя | C4: № формулы методических указаний | D4: Значение
A5: 1 | B5: Показатель средней продолжительности прекращений передачи электрической энергии (Пп) | C5: (1) | D5: ='ПоказНадежн (Пп)'!D39 -> 0.01703655352
A6: 2 | B6: Показатель уровня качества осуществляемого технологического присоединения, Птпр | C6: (2.1) | D6: ='ПоказТехприсоед (Птпр)'!C32 -> 1
A7: 3 | B7: Показатель уровня качества обслуживания потребителей услуг территориальными сетевыми организациями, Птсо | C7: (3.2) | D7: ='ПоказКачества (Птсо)'!C4 -> 1.004444444
A8: 4 | B8: Плановое значение показателя Пп, Пппл | C8: (4) | D8: ='ф.1.3 Предлож_ТСО'!D9 -> 0.01703655352
A9: 5 | B9: Плановое значение показателя Птпр, Птпрпл | C9: (4) | D9: ='ф.1.3 Предлож_ТСО'!D10 -> 1
A10: 6 | B10: Плановое значение показателя Птсо, Птсопл | C10: (4) | D10: ='ф.1.3 Предлож_ТСО'!D11 -> 1.004444444
A11: 7 | B11: Оценка достижения показателя уровня надежности оказываемых услуг, Кнад | C11: пп. 5.1 Методических указаний | D11: =IF((C16+C17)=2,0,IF(D5<=D8*(1-0.35),1,IF(D5<=D8*(1+0.35),0,IF(D5>D8*(1+0.35),-1)))) -> 0
A12: 8 | B12: Оценка достижения показателя уровня качества оказываемых услуг, Ккач (организации по управлению единой национальной (общероссийской) электрической сетью) | C12: пп. 5.1 Методических указаний | D12: ---
A13: 9 | B13: Оценка достижения показателя уровня качества оказываемых услуг, Ккач1 (для ТСО) технологические присоединения | C13: пп. 5.1 Методических указаний | D13: =IF(D6<=D9*(1-$B$3),1,IF(D6<=D9*(1+$B$3),0,IF(D6>D9*(1+$B$3),-1))) -> 0
A14: 10 | B14: Оценка достижения показателя уровня качества оказываемых услуг, Ккач2 (для ТСО) | C14: пп. 5.1 Методических указаний | D14: =IF(D7<=D10*(1-$B$3),1,IF(D7<=D10*(1+$B$3),0,IF(D7>D10*(1+$B$3),-1))) -> 0
B16: Проверка Пппл на равенство нулю | C16: =IF(D8<0.00000001,1,10) -> 10
B17: Проверка Пп на равенство нулю | C17: =IF(D5<0.00000001,1,10) -> 10

Sheet ф.4.2 ОбобщПоказ (Коб)
A2: Форма 4.2 - Расчет обобщенного показателя уровня надежности и качества оказываемых услуг
A4: ='ф.1.3 Предлож_ТСО'!A4:H4 -> ООО "Павловоэнерго"
A5: (наименование территориальной сетевой организации)
A7: Наименование | B7: № формулы Методических указаний | C7: Значение
A8: 1. Коэффициент значимости показателя уровня надежности оказываемых услуг, α | C8: 0.65
A9: 2. Коэффициент значимости показателя уровня качества оказываемых услуг, β | C9: ___
A10: 3. Коэффициент значимости показателя уровня качества оказываемых услуг, β1 | C10: 0.25
A11: 4. Коэффициент значимости показателя уровня качества оказываемых услуг, β2 | C11: 0.1
A12: 5. Оценка достижения показателя уровня надежности оказываемых услуг, Кнад | B12: пп. 5.1 | C12: =ф.4.1!D11 -> 0
A13: 6. Оценка достижения показателя уровня качества оказываемых услуг, Ккач | B13: пп. 5.1 | C13: ___
A14: 7. Оценка достижения показателя уровня качества оказываемых услуг, Ккач1 | B14: пп. 5.1 | C14: =ф.4.1!D13 -> 0
A15: 8. Оценка достижения показателя уровня качества оказываемых услуг, Ккач2 | B15: пп. 5.1 | C15: =ф.4.1!D14 -> 0
A16: 9. Обобщенный показатель уровня надежности и качества оказываемых услуг, Коб | B16: пп. 5.1 | C16: =C8*C12+C10*C14+C11*C15 -> 0
A20: ='ф.2.3 ИндРезул. (Рс)'!B60 -> Генеральный директор | B20: Орлова Ю.Н. | C20: _____________________
A21: (должность) | B21: (Ф.И.О.) | C21: (подпись)

Sheet Лист1
